Cogmind - Beta 16.1 @@@ ROGUE MODE // 2026.02.09 @ 22:15:18 Player: FISH Result: Destroyed by H-55 Commando with Assault Rifle Performance ------------- Evolutions (0) 0 Regions Visited (3) 600 Robots Destroyed (42) 210 Value Destroyed (913) 913 Prototype IDs (15) 300 Alien Tech Used (0) 0 Bonus (0) 0 TOTAL SCORE: 2023 Bonus ------- None Cogmind --------- Core Integrity 0/250 Matter 240/300 Energy 55/100 System Corruption 0% Temperature Cool (0) Movement Treading (320) Ox2 Location -9/Recycling Parts ------- > --- POWER (1) -------- (None) > --- PROPULSION (2) --- Improved Treads Subdweller Monowheel > --- UTILITY (2) ------ High-capacity Storage Unit Light Armor Plating > --- WEAPON (2) ------- Autogun Subdweller Shrapnel Launcher > --- INVENTORY (20) --- Improved Treads Improved Treads Arachnoskeleton Compact Wheel Improved Heat Sink Seismic Detector Seismic Detector Autogun Shotgun Barrage Gun Rocket Launcher Rocket Launcher 1B-0RG's Assimilator Peak State ------------ > --- POWER ------------ Ion Engine > --- PROPULSION ------- Improved Treads Subdweller Monowheel > --- UTILITY ---------- High-capacity Storage Unit Makeshift Light Armor Plating > --- WEAPON ----------- Autogun Barrage Gun > --- INVENTORY -------- Improved Treads Improved Treads Arachnoskeleton Compact Wheel Improved Heat Sink Seismic Detector Seismic Detector Light Armor Plating Autogun Autogun Rocket Launcher Rocket Launcher 1B-0RG's Assimilator [Rating: 25] Favorites ----------- Power Ion Engine Engine Ion Engine Propulsion Light Treads Treads Light Treads Leg Aluminum Leg Wheel Compact Wheel Utility High-capacity Storage Unit Device Seismic Detector Storage High-capacity Storage Unit Hackware Makeshift System Shield Protection Light Armor Plating Weapon Assault Rifle Energy Cannon Beam Cannon Ballistic Gun Assault Rifle Launcher Subdweller Shrapnel Launcher Build | -11 -10 -10 -9 ------- Run | Yrd Mat Sub Rec Slots Evolved . | . . . . Power . | . . . . Propulsion . | . . . . Utility . | . . . . Weapon . | . . . . Parts Attached 32 | 9 10 9 4 Power 2 | 1 1 . . Engine 2 | 1 1 . . Core . | . . . . Reactor . | . . . . Propulsion 10 | 4 3 2 1 Treads 5 | 2 1 1 1 Leg 2 | 2 . . . Wheel 3 | . 2 1 . Hover . | . . . . Flight . | . . . . Utility 10 | 2 4 3 1 Device 3 | 1 1 1 . Storage 3 | 1 2 . . Processor . | . . . . Hackware 1 | . . . 1 Protection 3 | . 1 2 . Artifact . | . . . . Weapon 10 | 2 2 4 2 Energy Gun . | . . . . Energy Cannon 1 | . 1 . . Ballistic Gun 6 | 2 . 2 2 Ballistic Cannon . | . . . . Launcher 3 | . 1 2 . Special Weapon . | . . . . Impact Weapon . | . . . . Slashing Weapon . | . . . . Piercing Weapon . | . . . . Special Melee Weapon . | . . . . Unidentified Prototypes . | . . . . Parts Lost 5 | . 2 3 . Power 2 | . 1 1 . Propulsion 2 | . 1 1 . Utility 1 | . . 1 . Weapon . | . . . . Highest Loss Streak 2 | . 2 2 . To Critical Strikes . | . . . . Average Backups 13 | 3 14 14 13 Power . | . . . . Propulsion 4 | 2 4 5 4 Utility 3 | . 3 4 3 Weapon 4 | . 5 4 5 Tool/Special . | . . . . Unused Backups 25 | . 12 6 7 Power 1 | . . 1 . Propulsion 7 | . 3 1 3 Utility 5 | . 3 1 1 Weapon 11 | . 6 3 2 Tool/Special 1 | . . . 1 Average Slot Usage (%) 97 | . 99 99 85 Engine 11 | . 13 13 . Treads 12 | . 10 14 14 Leg 3 | . 6 . . Wheel 12 | . 10 14 14 Device 12 | . 13 11 13 Storage 14 | . 14 14 14 Protection 1 | . . 2 . Energy Cannon 6 | . 11 1 . Ballistic Gun 19 | . 16 25 22 Launcher 1 | . . . 5 Peak Build Rating 25 | 7 10 25 23 Average Rating 13 | 5 8 20 20 On Entrance 9 | . 7 10 21 Avg Prop Armor Cover (%) 11 | . 11 11 12 Naked Turns . | . . . . Heaviest Build 55 | 12 53 55 54 Greatest Support 40 | 40 20 20 23 Greatest Overweight (x) 3 | 1 3 3 2 Average Overweight (x) 2 | . 2 2 2 Largest Inventory Capacity 20 | 8 20 20 20 Average Capacity 18 | 6 17 20 20 Most Carried 20 | 5 20 20 20 Average Carried 16 | 3 14 19 19 Final Capacity 20 | 8 20 20 20 Final Carried 20 | 5 20 20 19 Class Distribution -------------------- 100% | Mutant Dominant Class ---------------- Mutant | -10/Materials Mutant | -10/Subcaves Mutant | -9/Recycling Resources | -11 -10 -10 -9 ----------- Run | Yrd Mat Sub Rec Matter Collected 1441 | 350 526 309 256 Remotely . | . . . . Salvage Created 1082 | 129 742 166 45 Parts 90 | 9 52 24 5 Haulers Intercepted 2 | . 2 . . Recyclers Shooed 2 | . 2 . . Parts Field Recycled . | . . . . Retrieved Matter . | . . . . Parts Self-Destructed 3 | . . 3 . Prevented . | . . . . Parts Restored . | . . . . Kills | -11 -10 -10 -9 ------- Run | Yrd Mat Sub Rec Combat Hostiles Destroyed 26 | . 14 11 1 Guns 9 | . 5 4 . Cannons 4 | . 4 . . AOE 13 | . 5 7 1 Classes Destroyed 12 | 2 7 2 1 Worker 1 | . 1 . . Builder 3 | . 2 . 1 Tunneler 2 | 2 . . . Hauler 2 | . 2 . . Recycler 3 | 1 2 . . Operator 1 | . 1 . . Turret 2 | . . 2 . Watcher 2 | . 2 . . Swarmer 10 | . 6 4 . Grunt 8 | . 8 . . Sentry 1 | . . . 1 Subdweller 7 | . . 7 . Best Kill Streak 6 | 3 6 6 1 Combat Bots Only 4 | . 3 4 1 Max Kills in Single Turn 4 | 1 4 4 1 Gunslinging . | . . . . Exploded 4 | . 3 4 1 Melee . | . . . . Uniques/NPCs Destroyed . | . . . . Combat | -11 -10 -10 -9 -------- Run | Yrd Mat Sub Rec Hostile Shots Fired 120 | . 46 68 6 Missed 40 | . 12 25 3 Hits 80 | . 34 43 3 Projectile 80 | . 34 43 3 AOE 7 | . . 7 . Critical Strikes 1 | . 1 . . Damage Taken 1521 | . 398 1006 117 Core 260 | . 49 159 52 Absorbed by Shields . | . . . . Core Remaining (%) 100 | 100 . . . Volleys Fired 101 | 15 49 33 4 Largest 2 | 2 2 2 2 Hottest 88 | 40 80 88 63 Shots Fired 187 | 30 94 57 6 Gun 132 | 30 53 47 2 Cannon 39 | . 38 1 . Launcher 16 | . 3 9 4 Special . | . . . . Kinetic 140 | 30 53 51 6 Thermal 39 | . 38 1 . Explosive 8 | . 3 5 . Electromagnetic . | . . . . Robot Hit Streak 21 | 5 7 21 3 Robot Miss Streak 3 | 2 3 1 1 Penetration Max . | . . . . Secondary Targets . | . . . . Shots Hit Robots 121 | 19 59 40 3 Core Hits 68 | 6 34 24 4 Critical Kills 1 | . 1 . . Critical Parts Destroyed . | . . . . Critical Strikes 1 | . 1 . . Meltdown 1 | . 1 . . Melee Attacks . | . . . . Impact . | . . . . Slashing . | . . . . Piercing . | . . . . Sneak Attacks . | . . . . Combat Hostiles . | . . . . Follow-up Attacks . | . . . . Damage Inflicted 3059 | 166 1136 1531 226 Guns 1156 | 166 407 544 39 Cannons 457 | . 457 . . Explosions 1446 | . 272 987 187 Melee . | . . . . Ramming . | . . . . Kinetic 1808 | 166 407 1009 226 Thermal 457 | . 457 . . Explosive 794 | . 272 522 . Electromagnetic . | . . . . Impact . | . . . . Slashing . | . . . . Piercing . | . . . . Highest Corruption . | . . . . Average Corruption . | . . . . Corruption Purged . | . . . . Corruption Blocked . | . . . . Overload Shots . | . . . . Overflow Damage 31 | . . 14 17 Projectiles . | . . . . Explosions 31 | . . 14 17 Melee . | . . . . Knockbacks . | . . . . Impact . | . . . . Kinetic . | . . . . Secondary . | . . . . Self-Inflicted Damage 145 | . . 79 66 Shots 4 | . . 2 2 Rammed . | . . . . Targets Rammed . | . . . . Kicked . | . . . . Crushed . | . . . . Highest Temperature 201 | . 201 8 12 Average Temperature 61 | . 63 4 9 Received Heat Transfer 339 | . 201 129 9 Siege Activations . | . . . . Martial Activations . | . . . . Shielding Activations . | . . . . Robots Disrupted . | . . . . Combat Hostiles . | . . . . Robots Corrupted . | . . . . Combat Hostiles . | . . . . Parts Fried . | . . . . Impact Corruptions . | . . . . Robots Melted 1 | . 1 . . Combat Hostiles . | . . . . Parts Melted 4 | . 4 . . Heat Transferred 962 | . 962 . . Parts Sabotaged . | . . . . Parts Stolen . | . . . . Parts Stripped . | . . . . Power Chain Reactions . | . . . . Alert | -11 -10 -10 -9 ------- Run | Yrd Mat Sub Rec Maximum Alert Level 1 | . 1 . . Low Security (%) 95 | 100 94 . 100 Level 1 4 | . 5 . . Level 2 . | . . . . Level 3 . | . . . . Level 4 . | . . . . Level 5 . | . . . . High Security . | . . . . Max Security . | . . . . Peak Influence 215 | 5 215 . 71 Initial 51 | . . . 51 Average 61 | 1 76 . 21 Influence Increases 768 | 15 491 120 142 Destroy 0b10 Robot/C 420 | . 280 120 20 Destroy 0b10 Robot/NC 70 | 15 50 . 5 Destroy Leader 68 | . 68 . . Successful Hack 53 | . 17 . 36 Disable Machine 45 | . 15 . 30 Destroy Structure 82 | . 31 . 51 Lose Combat Pursuer 30 | . 30 . . Influence Decreases 752 | 15 374 129 234 Entered New Map 114 | . . 57 57 Time Decay 618 | 15 354 72 177 Lost Part 20 | . 20 . . Squads Dispatched 3 | . 3 . . Investigation 2 | . 2 . . Extermination . | . . . . Reinforcement 1 | . 1 . . Assault . | . . . . Garrison . | . . . . Intercept . | . . . . Searches Triggered . | . . . . Construction Impeded . | . . . . Haulers Reinforced . | . . . . Active Scanning Responses . | . . . . Cargo Convoy Interrupts . | . . . . Stealth | -11 -10 -10 -9 --------- Run | Yrd Mat Sub Rec Distress Signals 4 | . 3 . 1 Communications Jammed . | . . . . Distress Signals . | . . . . Times Spotted 38 | . 22 13 3 Peak Tracking Total 6 | . 4 6 2 Tactical Retreats 2 | . 2 . . Traps | -11 -10 -10 -9 ------- Run | Yrd Mat Sub Rec Traps Triggered 3 | . 2 1 . Indirectly . | . . . . Trap Hack Attempts . | . . . . Triggered . | . . . . Disarmed . | . . . . Reprogrammed . | . . . . Reused . | . . . . Traps Extracted . | . . . . Installed . | . . . . Triggered . | . . . . Machines | -11 -10 -10 -9 ---------- Run | Yrd Mat Sub Rec Machines Disabled 8 | . 1 5 2 Max in Single Turn 4 | . 1 4 2 Machines Repaired . | . . . . Machines Dismantled . | . . . . Machines Sabotaged . | . . . . Overloaded Fab Kills . | . . . . Hacking | -11 -10 -10 -9 --------- Run | Yrd Mat Sub Rec Machines Accessed 12 | . 6 1 5 Terminals 11 | . 6 . 5 Fabricators . | . . . . Repair Stations . | . . . . Recycling Units . | . . . . Scanalyzers . | . . . . Garrison Access . | . . . . Total Hacks 42 | . 15 9 18 Successful 25 | . 8 9 8 Failed 17 | . 7 . 10 Catastrophic 4 | . . . 4 Database Lockouts . | . . . . Manual 24 | . 13 . 11 Terminals 33 | . 15 . 18 Fabricators . | . . . . Repair Stations . | . . . . Recycling Units . | . . . . Scanalyzers . | . . . . Garrison Access . | . . . . Terminal Hacks 16 | . 2 9 5 Record 8 | . . 8 . Robot Analysis 1 | . . . 1 Prototype ID Bank 1 | . . . 1 Level Access Points 1 | . . . 1 Branch Access Points 1 | . . . 1 Locate Traps 1 | . 1 . . Recall Investigation 1 | . 1 . . Zone Layout 1 | . . . 1 Proto ID Catalog 1 | . . 1 . Fabricator Hacks . | . . . . Repair Station Hacks . | . . . . Recycling Unit Hacks . | . . . . Scanalyzer . | . . . . Garrison Access Hacks . | . . . . Unauthorized Hacks 9 | . 6 . 3 Terminals 9 | . 6 . 3 Botnet 5 | . 2 . 3 Skim 4 | . 4 . . Fabricators . | . . . . Repair Stations . | . . . . Recycling Units . | . . . . Scanalyzers . | . . . . Garrison Access . | . . . . Data Cores Recovered . | . . . . Used . | . . . . Hacking Detections 11 | . 6 . 5 Full Trace Events . | . . . . Feedback Events . | . . . . Feedback Blocked . | . . . . Robot Schematics Acquired . | . . . . Robots Built . | . . . . Authchips . | . . . . Time . | . . . . Total Robot Build Rating . | . . . . Part Schematics Acquired . | . . . . Parts Built . | . . . . Authchips . | . . . . Time . | . . . . Total Part Build Rating . | . . . . Part Studies Acquired . | . . . . Parts Repaired . | . . . . Time . | . . . . Parts Recycled . | . . . . Recycled Matter . | . . . . Retrieved Matter . | . . . . Retrieved Components . | . . . . Parts Scanalyzed . | . . . . Part Schematics Acquired . | . . . . Parts Damaged . | . . . . Bothacking | -11 -10 -10 -9 ------------ Run | Yrd Mat Sub Rec Used RIF Installer . | . . . . Robots Hacked . | . . . . Non-combat . | . . . . Combat . | . . . . Robot Hacks Applied . | . . . . Relay Couplers Released . | . . . . Fabnet Peak Effective % . | . . . . Robots Rewired . | . . . . Allies Hacked . | . . . . Hacks Repelled . | . . . . Allies | -11 -10 -10 -9 -------- Run | Yrd Mat Sub Rec Total Allies . | . . . . Largest Group . | . . . . Highest-Rated Group . | . . . . Highest-Rated Ally . | . . . . Total Orders . | . . . . Ally Attacks . | . . . . Total Damage . | . . . . Kills . | . . . . Allies Corrupted . | . . . . Allies Melted . | . . . . Intel | -11 -10 -10 -9 ------- Run | Yrd Mat Sub Rec Active Infowar (turns) 2611 | 24 1403 738 446 Seismic 2611 | 24 1403 738 446 Robot Analysis Total 1 | . . . 1 Derelict Logs Recovered 1 | . . 1 . Drone Launches . | . . . . Drone Recoveries . | . . . . Exploration | -11 -10 -10 -9 ------------- Run | Yrd Mat Sub Rec Turns Passed 3244 | 131 1727 924 462 Spaces Moved 1789 | 60 844 579 306 Core 15 | 15 . . . Treads 25 | 7 1 . 17 Legs 265 | 38 227 . . Wheels 1484 | . 616 579 289 Hover . | . . . . Flight . | . . . . Fastest Speed 50 | 50 120 130 130 Average Speed 137 | 117 137 137 140 Slowest Speed 320 | 160 320 145 320 Overloaded Moves . | . . . . Propulsion Burnouts . | . . . . Robots Hopped . | . . . . Potential Cave-ins . | . . . . Cave-ins Triggered . | . . . . Exploration Rate (%) 49 | 4 98 40 54 Regions Visited 3 Branch Regions 2 Pre-discovered Areas . | . . . . Known Exits Taken . | . . . . Unknown Exits Taken 3 | 1 1 1 . Scrap Searched 4 | . . 4 . Spaces Dug 5 | . . 5 . Terrain Destroyed 161 | . 27 75 59 Melee . | . . . . Projectile . | . . . . AOE 161 | . 27 75 59 Terrain Rammed . | . . . . Walls Destroyed . | . . . . Machines Disabled . | . . . . Actions | -11 -10 -10 -9 --------- Run | Yrd Mat Sub Rec Total 2406 | 90 1329 658 329 Wait 395 | 2 366 19 8 Move 1786 | 59 843 578 306 Hop . | . . . . Pick Up 42 | 3 34 5 . Fast Attach 11 | 9 . 1 1 Attach 5 | . 2 3 . Detach 3 | 2 . 1 . Swap 31 | . 15 7 9 Drop 32 | . 20 11 1 Fire 101 | 15 49 33 4 Melee . | . . . . Ram . | . . . . Kick . | . . . . Crush . | . . . . Escape Stasis . | . . . . Rewire . | . . . . Trap . | . . . . Miscellaneous . | . . . . Route ------- -11/Scrapyard -10/Materials (discovered 6 exits: [*Mat x3] / [*Min x2] / *Sub) -10/Subcaves -9/Recycling (discovered 1 exit: Fac) History --------- Turn | Location | Event 12 | -11/Scrapyard | Discovered new exit (range 15) 132 | -11/Scrapyard | Entered Materials 317 | -10/Materials | Build established: Mutant 423 | -10/Materials | Discovered new exit (range 16) 656 | -10/Materials | Discovered new exit (range 8) 1032 | -10/Materials | Discovered new exit (range 8) 1229 | -10/Materials | Discovered new exit (range 7) 1390 | -10/Materials | Discovered new exit (range 9) 1827 | -10/Materials | Discovered new exit (range 8) 1859 | -10/Materials | Entered Subcaves 1860 | -10/Subcaves | Approached by a straggling Scientist 1907 | -10/Subcaves | Learned Materials emergency access door positions 1961 | -10/Subcaves | Visited 4L-MR0's lab 1988 | -10/Subcaves | Found Prototype Special Melee Weapon 1992 | -10/Subcaves | Found Arachnoskeleton 2377 | -10/Subcaves | Ambushed by Subdweller buried in earth 2379 | -10/Subcaves | Core integrity fell below 50% 2384 | -10/Subcaves | Ambushed by Subdweller buried in earth 2597 | -10/Subcaves | Shifting Twisted Machinery released Spk. Treads 2598 | -10/Subcaves | Shifting Twisted Machinery released Battle Rifle 2759 | -10/Subcaves | Core integrity fell below 20% 2764 | -10/Subcaves | Discovered new exit (range 16) 2783 | -10/Subcaves | Entered Recycling 3130 | -9/Recycling | Identified exit to Factory 3245 | -9/Recycling | Destroyed by H-55 Commando with Assault Rifle Last Messages --------------- 03096_ Connecting with Terminal... >>Trojan(Botnet) Trojan loaded successfully. Testing... Terminal linked with 2 systems. Awaiting botnet instructions. 03129_ Connecting with Terminal... >>Access(Main) Found 1 level access point to Factory: (65,18) Map updated. >>Access(Branch) No branch access points found. >>Prototypes Downloading prototype IDs... Imp. VTOL Module Adv. EMP Blaster 03132_ Discarded Mak. System Shield. 03241_ Y-45 Defender springs to life. 03245_ Penetrated by Slug. Map ----- +----------------------------------------------------+ | ?????????????????????????????????????????????????? | | ?????????????????????????????????????????????????? | | ?????????????????????????????????????????????????? | | ?????????????????????????????????????????????????? | | ?????????????????????????????????????????????????? | | ?????????????????????????????????????????????????? | | ?????????????????????????????????????????????????? | | ?????????????????????????????????????????????????? | | ?????????????????????????????????????????????????? | | ?????????????????????????????????????????????????? | | ???????????????????????##Y#??????????????????????? | | ??? ??????????????????# ??????????????????????? | | ??? ?????????????? ?+ ????